Cogmind - Beta 15 @@@ ROGUE MODE // 2025.05.09 @ 12:02:03 Player: Demo Result: Destroyed by Autobeam Turret with Autobeam Performance ------------- Evolutions (0) 0 Regions Visited (3) 600 Robots Destroyed (40) 200 Value Destroyed (728) 728 Prototype IDs (2) 40 Alien Tech Used (0) 0 Bonus (30) 30 TOTAL SCORE: 1598 Bonus ------- Follower Combat Kills 30 Cogmind --------- Core Integrity 0/250 Matter 95/300 Energy 160/160 System Corruption 1% Temperature Cool (6) Movement Rolling (95) Ox1 Location -10/Subcaves Parts ------- > --- POWER (1) -------- Light Nuclear Core > --- PROPULSION (2) --- Wheel Wheel > --- UTILITY (2) ------ Large Storage Unit Weapon Shielding > --- WEAPON (2) ------- Grenade Launcher Grenade Launcher > --- INVENTORY (15) --- Wheel Wheel Wheel Flight Unit Heat Sink Improved Heat Sink Large Storage Unit Medium Matter Pod (100) Structural Scanner Experimental Sensor Array Particle Gun Particle Gun Beam Cannon Grenade Launcher Peak State ------------ > --- POWER ------------ Light Nuclear Core > --- PROPULSION ------- Wheel Wheel > --- UTILITY ---------- Improved Heat Sink Large Storage Unit > --- WEAPON ----------- Particle Gun Beam Cannon > --- INVENTORY -------- Wheel Wheel Wheel Wheel Flight Unit Heat Sink Large Storage Unit Medium Matter Pod Structural Scanner Experimental Sensor Array Weapon Shielding Particle Gun Grenade Launcher Grenade Launcher Grenade Launcher [Rating: 14] Favorites ----------- Power Light Nuclear Core Engine Ion Engine Power Core Light Nuclear Core Propulsion Wheel Treads Light Treads Wheel Wheel Utility Large Storage Unit Device Structural Scanner Storage Large Storage Unit Protection Weapon Shielding Weapon Light Assault Rifle Energy Gun Particle Gun Energy Cannon Beam Cannon Ballistic Gun Light Assault Rifle Launcher Grenade Launcher Build | -11 -10 -10 -10 ------- Run | Yrd Mat Min Sub Slots Evolved . | . . . . Power . | . . . . Propulsion . | . . . . Utility . | . . . . Weapon . | . . . . Parts Attached 37 | 11 12 11 3 Power 7 | 2 2 3 . Engine 6 | 2 2 2 . Core 1 | . . 1 . Reactor . | . . . . Propulsion 12 | 4 3 4 1 Treads 1 | . 1 . . Leg . | . . . . Wheel 11 | 4 2 4 1 Hover . | . . . . Flight . | . . . . Utility 8 | 2 3 3 . Device 4 | 1 1 2 . Storage 3 | 1 2 . . Processor . | . . . . Hackware . | . . . . Protection 1 | . . 1 . Artifact . | . . . . Weapon 10 | 3 4 1 2 Energy Gun 4 | 1 1 1 1 Energy Cannon 1 | . 1 . . Ballistic Gun 2 | 2 . . . Ballistic Cannon . | . . . . Launcher 3 | . 2 . 1 Special Weapon . | . . . . Impact Weapon . | . . . . Slashing Weapon . | . . . . Piercing Weapon . | . . . . Special Melee Weapon . | . . . . Unidentified Prototypes . | . . . . Parts Lost 6 | . 2 3 1 Power 1 | . . 1 . Propulsion 2 | . . 1 1 Utility . | . . . . Weapon 3 | . 2 1 . Highest Loss Streak 2 | . 1 2 1 To Critical Strikes . | . . . . Average Backups 13 | 5 13 14 14 Power . | . . . . Propulsion 5 | 3 5 5 4 Utility 4 | . 3 5 6 Weapon 3 | 1 3 3 4 Tool/Special . | . . . . Unused Backups 13 | 1 2 2 8 Power . | . . . . Propulsion 7 | 1 1 1 4 Utility 6 | . 1 1 4 Weapon . | . . . . Tool/Special . | . . . . Average Slot Usage (%) 99 | . 99 99 100 Engine 8 | . 13 9 . Core 5 | . . 4 14 Treads 2 | . 4 3 . Wheel 25 | . 23 24 28 Device 12 | . 14 12 11 Storage 14 | . 14 14 14 Protection 1 | . . 1 2 Energy Gun 6 | . 5 5 10 Energy Cannon 7 | . 1 14 . Ballistic Gun 7 | . 16 6 . Launcher 5 | . 4 1 17 Peak Build Rating 14 | 7 8 14 12 Average Rating 9 | 5 7 9 11 On Entrance 6 | . 7 8 12 Naked Turns . | . . . . Heaviest Build 32 | 14 31 32 32 Greatest Support 26 | 26 20 20 20 Greatest Overweight (x) 3 | 1 3 3 3 Average Overweight (x) 1 | . 1 1 1 Largest Inventory Capacity 15 | 8 15 15 15 Average Capacity 14 | 7 13 15 15 Most Carried 15 | 8 15 15 15 Average Carried 13 | 6 13 14 14 Final Capacity 15 | 8 15 15 15 Final Carried 15 | 8 15 15 14 Class Distribution -------------------- 97% | Mutant Dominant Class ---------------- Mutant | -10/Materials Mutant | -10/Mines Mutant | -10/Subcaves Resources | -11 -10 -10 -10 ----------- Run | Yrd Mat Min Sub Matter Collected 1200 | 390 249 421 140 Remotely . | . . . . Salvage Created 1209 | 258 294 488 169 Parts 84 | 13 16 41 14 Haulers Intercepted 2 | . 2 . . Recyclers Shooed 1 | . . 1 . Parts Field Recycled . | . . . . Retrieved Matter . | . . . . Parts Self-Destructed 7 | . . . 7 Prevented . | . . . . Kills | -11 -10 -10 -10 ------- Run | Yrd Mat Min Sub Combat Hostiles Destroyed 20 | . 5 7 8 Guns 6 | . 2 4 . Cannons 2 | . . 2 . AOE 12 | . 3 1 8 Classes Destroyed 9 | 3 3 1 2 Worker 4 | 2 1 1 . Builder 4 | . . 4 . Tunneler 7 | 5 . 2 . Hauler 2 | . 2 . . Recycler 3 | 1 1 1 . Swarmer 7 | . 3 . 4 Grunt 9 | . 2 7 . Sentry 1 | . . . 1 Subdweller 3 | . . . 3 Best Kill Streak 6 | 6 4 5 4 Combat Bots Only 4 | . 3 3 4 Max Kills in Single Turn 3 | 1 2 3 1 Gunslinging . | . . . . Exploded 2 | . 2 1 1 Melee . | . . . . Uniques/NPCs Destroyed . | . . . . Combat | -11 -10 -10 -10 -------- Run | Yrd Mat Min Sub Hostile Shots Fired 98 | . 34 30 34 Missed 25 | . 4 6 15 Hits 73 | . 30 24 19 Projectile 73 | . 30 24 19 Critical Strikes 2 | . 2 . . Part Disruptions 1 | . 1 . . Damage Taken 1072 | 25 530 334 183 Core 251 | . 161 49 41 Absorbed by Shields . | . . . . Redirected to Shielding 18 | . . 4 14 Regen/Repaired (Parts) 27 | . 27 . . Core Remaining (%) 100 | 100 . . . Volleys Fired 132 | 27 44 39 22 Largest 2 | 2 2 2 2 Hottest 125 | 60 100 125 95 Shots Fired 222 | 54 73 65 30 Gun 145 | 54 60 28 3 Cannon 41 | . 5 36 . Launcher 36 | . 8 1 27 Special . | . . . . Kinetic 85 | 30 37 18 . Thermal 54 | . 5 46 3 Explosive 36 | . 8 1 27 Electromagnetic 47 | 24 23 . . Robot Hit Streak 14 | 4 6 10 14 Robot Miss Streak 4 | 2 4 4 2 Penetration Max . | . . . . Secondary Targets . | . . . . Shots Hit Robots 111 | 31 34 41 5 Core Hits 69 | 10 19 21 19 Critical Kills . | . . . . Critical Parts Destroyed 2 | . 2 . . Critical Strikes 2 | . 2 . . Destroy 2 | . 2 . . Melee Attacks . | . . . . Impact . | . . . . Slashing . | . . . . Piercing . | . . . . Sneak Attacks . | . . . . Combat Hostiles . | . . . . Follow-up Attacks . | . . . . Damage Inflicted 2345 | 476 642 683 544 Guns 853 | 322 283 234 14 Cannons 405 | . 35 370 . Explosions 1087 | 154 324 79 530 Melee . | . . . . Ramming . | . . . . Kinetic 379 | 119 169 91 . Thermal 809 | 154 128 513 14 Explosive 780 | . 171 79 530 Electromagnetic 377 | 203 174 . . Impact . | . . . . Slashing . | . . . . Piercing . | . . . . Highest Corruption 1 | . 1 1 1 Average Corruption 1 | . 1 1 1 Corruption Purged . | . . . . Corruption Blocked . | . . . . Effects 12 | . 4 7 1 Message Errors 5 | . 1 3 1 Matter Fused 3 | . 1 2 . Heat Flow Errors 2 | . 1 1 . Data Loss (minor) 1 | . 1 . . Alerts 1 | . . 1 . Overload Shots . | . . . . Overflow Damage 50 | . 34 . 16 Projectiles . | . . . . Explosions 50 | . 34 . 16 Melee . | . . . . Knockbacks . | . . . . Impact . | . . . . Kinetic . | . . . . Secondary . | . . . . Self-Inflicted Damage 217 | 25 147 . 45 Shots 8 | 1 5 . 2 Rammed . | . . . . Targets Rammed . | . . . . Kicked . | . . . . Crushed . | . . . . Highest Temperature 466 | 60 466 287 . Average Temperature 110 | 29 171 100 . Received Heat Transfer 486 | . 222 192 72 Effects 5 | . 4 1 . Shutdowns 1 | . 1 . . Energy Bleed 2 | . 1 1 . Matter Decay 1 | . 1 . . Damage (minor) 1 | . 1 . . Siege Activations . | . . . . Martial Activations . | . . . . Shielding Activations . | . . . . Robots Disrupted . | . . . . Combat Hostiles . | . . . . Robots Corrupted . | . . . . Combat Hostiles . | . . . . Parts Fried 3 | 1 2 . . Impact Corruptions . | . . . . Robots Melted . | . . . . Combat Hostiles . | . . . . Parts Melted 3 | . . 3 . Heat Transferred 1471 | 200 124 1110 37 Parts Sabotaged . | . . . . Parts Stolen . | . . . . Parts Stripped . | . . . . Power Chain Reactions 5 | 3 2 . . Alert | -11 -10 -10 -10 ------- Run | Yrd Mat Min Sub Maximum Alert Level . | . . . . Low Security (%) 100 | 100 100 100 . Level 1 . | . . . . Level 2 . | . . . . Level 3 . | . . . . Level 4 . | . . . . Level 5 . | . . . . High Security . | . . . . Max Security . | . . . . Peak Influence 128 | 10 128 79 . Initial 43 | . . 43 . Average 20 | 2 28 20 . Influence Increases 1092 | 40 311 220 521 Destroy 0b10 Robot/C 340 | . 100 140 100 Destroy 0b10 Robot/NC 100 | 40 20 40 . Destroy Leader 54 | . 24 30 . Allied During Kill 1 | . . . 1 Successful Hack 50 | . 50 . . Disable Machine 60 | . 60 . . Destroy Structure 67 | . 57 10 . Lose Combat Pursuer 420 | . . . 420 Influence Decreases 642 | 40 199 332 71 Entered New Map 69 | . . 69 . Time Decay 530 | 40 179 250 61 Lost Part 43 | . 20 13 10 Squads Dispatched 4 | . 4 . . Investigation 4 | . 4 . . Extermination . | . . . . Reinforcement . | . . . . Assault . | . . . . Garrison . | . . . . Intercept . | . . . . Searches Triggered . | . . . . Construction Impeded . | . . . . Haulers Reinforced . | . . . . Active Scanning Responses . | . . . . Cargo Convoy Interrupts . | . . . . Stealth | -11 -10 -10 -10 --------- Run | Yrd Mat Min Sub Distress Signals 2 | . 2 . . Communications Jammed . | . . . . Distress Signals . | . . . . Times Spotted 26 | . 5 7 14 Peak Tracking Total 4 | . 3 3 4 Tactical Retreats 4 | . . . 4 Traps | -11 -10 -10 -10 ------- Run | Yrd Mat Min Sub Traps Triggered 1 | . 1 . . Indirectly . | . . . . Trap Hack Attempts . | . . . . Triggered . | . . . . Disarmed . | . . . . Reprogrammed . | . . . . Reused . | . . . . Traps Extracted . | . . . . Installed . | . . . . Triggered . | . . . . Machines | -11 -10 -10 -10 ---------- Run | Yrd Mat Min Sub Machines Disabled 6 | . 4 . 2 Max in Single Turn 2 | . 2 . 1 Machines Repaired . | . . . . Machines Dismantled . | . . . . Machines Sabotaged . | . . . . Overloaded Fab Kills . | . . . . Hacking | -11 -10 -10 -10 --------- Run | Yrd Mat Min Sub Machines Accessed 9 | . 8 . 1 Terminals 6 | . 6 . . Fabricators . | . . . . Repair Stations 1 | . 1 . . Recycling Units 1 | . 1 . . Scanalyzers . | . . . . Garrison Access . | . . . . Total Hacks 29 | . 24 . 5 Successful 20 | . 15 . 5 Failed 9 | . 9 . . Catastrophic 2 | . 2 . . Database Lockouts . | . . . . Manual 14 | . 14 . . Terminals 21 | . 21 . . Fabricators . | . . . . Repair Stations 1 | . 1 . . Recycling Units 2 | . 2 . . Scanalyzers . | . . . . Garrison Access . | . . . . Terminal Hacks 15 | . 10 . 5 Record 6 | . 1 . 5 Prototype ID Bank 1 | . 1 . . Branch Access Points 1 | . 1 . . Terminal Index 1 | . 1 . . Locate Traps 2 | . 2 . . Surveillance Status 1 | . 1 . . Investigation Status 1 | . 1 . . Hauler Manifests 1 | . 1 . . Registered Components 1 | . 1 . . Fabricator Hacks . | . . . . Repair Station Hacks . | . . . . Recycling Unit Hacks 2 | . 2 . . Report Inventory 1 | . 1 . . Retrieve Components 1 | . 1 . . Scanalyzer . | . . . . Garrison Access Hacks . | . . . . Unauthorized Hacks 3 | . 3 . . Terminals 2 | . 2 . . Botnet 2 | . 2 . . Fabricators . | . . . . Repair Stations 1 | . 1 . . Patch 1 | . 1 . . Recycling Units . | . . . . Scanalyzers . | . . . . Garrison Access . | . . . . Data Cores Recovered . | . . . . Used . | . . . . Hacking Detections 6 | . 6 . . Full Trace Events . | . . . . Feedback Events . | . . . . Feedback Blocked . | . . . . Robot Schematics Acquired . | . . . . Robots Built . | . . . . Authchips . | . . . . Time . | . . . . Total Robot Build Rating . | . . . . Part Schematics Acquired . | . . . . Parts Built . | . . . . Authchips . | . . . . Time . | . . . . Total Part Build Rating . | . . . . Parts Repaired . | . . . . Time . | . . . . Parts Recycled . | . . . . Recycled Matter . | . . . . Retrieved Matter . | . . . . Retrieved Components 1 | . 1 . . Parts Scanalyzed . | . . . . Part Schematics Acquired . | . . . . Parts Damaged . | . . . . Bothacking | -11 -10 -10 -10 ------------ Run | Yrd Mat Min Sub Used RIF Installer . | . . . . Robots Hacked . | . . . . Non-combat . | . . . . Combat . | . . . . Robot Hacks Applied . | . . . . Relay Couplers Released . | . . . . Fabnet Peak Effective % . | . . . . Robots Rewired . | . . . . Allies Hacked . | . . . . Hacks Repelled . | . . . . Allies | -11 -10 -10 -10 -------- Run | Yrd Mat Min Sub Total Allies 1 | . . 1 . Largest Group 1 | . . 1 1 Highest-Rated Group 31 | . . 31 31 Highest-Rated Ally 31 | . . 31 31 Total Orders . | . . . . Ally Attacks 4 | . . . 4 Total Damage 84 | . . . 84 Kills 1 | . . . 1 Allies Corrupted . | . . . . Allies Melted . | . . . . Intel | -11 -10 -10 -10 ------- Run | Yrd Mat Min Sub Active Infowar (turns) 1826 | 80 532 803 411 Structural 1654 | . 440 803 411 Seismic 172 | 80 92 . . Robot Analysis Total . | . . . . Derelict Logs Recovered 1 | . . 1 . Drone Launches . | . . . . Drone Recoveries . | . . . . Exploration | -11 -10 -10 -10 ------------- Run | Yrd Mat Min Sub Turns Passed 2404 | 225 534 1133 512 Spaces Moved 1594 | 148 382 612 452 Core 10 | 10 . . . Treads 1 | . . 1 . Legs . | . . . . Wheels 1583 | 138 382 611 452 Hover . | . . . . Flight . | . . . . Fastest Speed 50 | 50 80 95 95 Average Speed 95 | 82 95 98 95 Slowest Speed 240 | 100 125 240 125 Overloaded Moves . | . . . . Propulsion Burnouts . | . . . . Robots Hopped . | . . . . Potential Cave-ins . | . . . . Cave-ins Triggered . | . . . . Exploration Rate (%) 51 | 7 67 99 34 Regions Visited 3 Branch Regions 2 Pre-discovered Areas 2 | . . 1 1 Known Exits Taken 1 | . 1 . . Unknown Exits Taken 2 | 1 . 1 . Scrap Searched 1 | . . 1 . Spaces Dug . | . . . . Terrain Destroyed 160 | 11 53 10 86 Melee . | . . . . Projectile . | . . . . AOE 160 | 11 53 10 86 Terrain Rammed . | . . . . Walls Destroyed . | . . . . Machines Disabled . | . . . . Actions | -11 -10 -10 -10 --------- Run | Yrd Mat Min Sub Total 2273 | 203 486 1081 503 Wait 433 | 1 19 390 23 Move 1591 | 147 381 611 452 Hop . | . . . . Pick Up 36 | 14 13 9 . Fast Attach 6 | 3 2 1 . Attach 11 | 5 3 2 1 Detach . | . . . . Swap 40 | 3 14 18 5 Drop 24 | 3 10 11 . Fire 132 | 27 44 39 22 Melee . | . . . . Ram . | . . . . Kick . | . . . . Crush . | . . . . Escape Stasis . | . . . . Rewire . | . . . . Trap . | . . . . Miscellaneous . | . . . . Route ------- -11/Scrapyard -10/Materials (discovered 4 exits: [*Mat x2] / *Min x2) -10/Mines (discovered 4 exits: [*Mat x2] / [*Exi] / *Sub) -10/Subcaves (discovered 1 exit: Rec) History --------- Turn | Location | Event 10 | -11/Scrapyard | Discovered new exit (range 16) 226 | -11/Scrapyard | Entered Materials 227 | -10/Materials | Met a group of wandering Federalists 255 | -10/Materials | Identified exit to Mines 314 | -10/Materials | Build established: Mutant 349 | -10/Materials | Discovered new exit (range 14) 489 | -10/Materials | Core integrity fell below 50% 571 | -10/Materials | Discovered new exit (range 10) 760 | -10/Materials | Entered Mines 897 | -10/Mines | Discovered new exit (range 5) 967 | -10/Mines | Deemed a non-threat by the Exiles lab entrance 968 | -10/Mines | Discovered new exit (range 5) 1016 | -10/Mines | Learned location of Storage (-8) 1090 | -10/Mines | Found a damaged Exp. Sensor Array with a note attached 1092 | -10/Mines | Found Prototype Device 1161 | -10/Mines | Discovered new exit (range 4) 1510 | -10/Mines | Core integrity fell below 20% 1556 | -10/Mines | Escorted by a lone wolf Derelict 1621 | -10/Mines | Discovered new exit (range 6) 1893 | -10/Mines | Entered Subcaves 1893 | -10/Subcaves | Accompanied by 1 ally 1894 | -10/Subcaves | Approached by a straggling Scientist 1977 | -10/Subcaves | Learned location of Zion (-7) 1977 | -10/Subcaves | Met a Zionite searching for "candidates" 2003 | -10/Subcaves | Visited Clippyterm 2005 | -10/Subcaves | Identified exit to Recycling 2005 | -10/Subcaves | Learned Research machine intel 2405 | -10/Subcaves | Destroyed by Autobeam Turret with Autobeam Last Messages --------------- 02209_ The unstable cave ceiling collapses. 1T-BLK(c): "I think it's somewhere south of here" 02305_ NE-GKS(g): "Mission, incomplete...*fzzt*" 02305_ NE-GKS(g) destroyed. 02308_ S-10 Pest destroyed. 02314_ Lgt. Assault Rifle fries itself beyond repair. 02314_ S-10 Pest destroyed. 02315_ Flight Unit fries itself beyond repair. 02323_ S-10 Pest destroyed. 02331_ Flight Unit fries itself beyond repair. 02331_ 1T-BLK(c) destroyed. 02335_ Machine disabled. 02336_ The unstable cave ceiling collapses. 02337_ Machine disabled. 02339_ Flight Unit fries itself beyond repair. 02354_ Wheel destroyed. 02354_ Destroyed Wheel. 02363_ The unstable cave ceiling collapses. Map ----- +----------------------------------------------------+ | ?????????????????????????????????????????????????? | | ?????????????????????????????????????????????????? | | ?????????????????????????????????????????????????? | | ???????????????????????###############???????????? | | ???????????#######???############################? | | ?????################### ## #############? | | ?????######## ####### ## ##? | | ?????## ## #### ## ##? | | ??##### ### ## ### ### | | ####### #### # #### ### | | #### ### ### ## ##### | | ### ## ##### ######### | | ##### #### ########## | | ###### ### ## ####### ### | | ###?## ############ | | ###?### #### ########## | | ###?#### ##### ####### %! #######?? | | ##??#### ##### ####### = ###? | | ##???######### ##???### #### | | ###????####### ##???#### ### | | # ####????# #### ######### ## | | ## ###????## ### # ## ## | | #### ##??#### ## ## | | #######?## # | | ######### | | ##?####### ## @ % # | | ###### #####?## # ### | | ###### ###?## #### ### ### | | ## ## ##??## #### ### ## | | # ##???# ???## # #### ## | | ##???## ???#### # #### #### | | ##????####????### ??### #### | | ### ##????#####??????# ???### #?? | | ## #####?########???# ?????? ?? | | #####?## #####???? t t?????? ? | | ###### ##### ##????? #" " ??????? ? | | ######## ##### ##????? ##"""" ??????? ? | | ### ### ### ###?????##????#>???????# ?? | | ## ## ####????????????????????? ??? | | ###??????????????????????????? | | ### ###???????????????????????????? | | ### ####### ####???????????????????????????? | | #################????????????????????????????? | | # ########???######?????????????????????????????? | | ######???????????????????????????????????????????? | | #####????????????????????????????????????????????? | | ?????????????????????????????????????????????????? | | ?????????????????????????????????????????????????? | | ?????????????????????????????????????????????????? | | ?????????????????????????????????????????????????? | +----------------------------------------------------+ Best States ------------- Heat Dissipation 39 Energy Generation 14 Energy Capacity 250 Matter Stores 300 Matter Capacity 300 Sight Range 16 Terrain Scan Density 10 Weapon Shielding 33 Evasion (%) 44 Recoil Reduction 1 Item Schematics ----------------- None Robot Schematics ------------------ None Fabricated ------------ Nothing Repaired ---------- Nothing Alien Tech Used ----------------- None Achievements -------------- None Challenges ------------ None Game ------ Seed WeaponImpulseTerrabomb Manual? 0 Play Time 00:28:19 Cumulative 156.5 hours Start 2025.05.09 @ 10:10:47 End 2025.05.09 @ 12:02:03 Sessions 3 Manual Loads 0 Difficulty Rogue Special Mode None Game No. 180 Rogue 180 Adventurer 0 Explorer 0 Win Type - Total 1 Types 1/0/0/0/0/0/0/0/0/0 Lore% 60 Gallery% 67 Achievement% 61 Wizard Run 0 Options --------- Layout 1 ASCII 0 Keyboard 0 Movement Numpad Keybinds 0 Fullscreen 1 Font 24/Smallcaps Map View 50x35 Zoom Use 0% Tactical HUD 1 Map Filters NONE Filters NONE Steam 1 RUN: b064f827-192e-414d-b535-9346b5840352